Cogmind - Beta 9.4 @@@ ROGUE MODE // 2020.02.26 @ 23:33:36 Player: Trione Result: Destroyed by G-34 Mercenary with Small Laser Performance ------------- Evolutions (1) 500 Regions Visited (3) 600 Robots Destroyed (0) 0 Value Destroyed (0) 0 Prototype IDs (0) 0 Alien Tech Used (0) 0 Bonus (200) 200 TOTAL SCORE: 1300 Bonus ------- Pacifist 200 Cogmind --------- Core Integrity 0/400 Matter 141/300 Energy 100/100 System Corruption 0% Temperature Cool (12) Movement Core (50) Location -9/Materials Parts ------- > --- POWER (1) -------- (None) > --- PROPULSION (2) --- (None) > --- UTILITY (4) ------ Seismic Analyzer > --- WEAPON (2) ------- (None) > --- INVENTORY (4) ---- Hacking Suite Hacking Suite Hacking Suite Hacking Suite Peak State ------------ > --- POWER ------------ (None) > --- PROPULSION ------- (None) > --- UTILITY ---------- Advanced Sensor Array Seismic Analyzer > --- WEAPON ----------- Medium Laser > --- INVENTORY -------- Medium Laser [Rating: 5] Favorites ----------- Power None Propulsion None Utility Seismic Analyzer Device Advanced Sensor Array Processor Seismic Analyzer Weapon Medium Laser Energy Gun Medium Laser Build | -11 -10 -10 -9 ------- Run | Scr Mat Min Mat Slots Evolved 2 | . . . 2 Power . | . . . . Propulsion . | . . . . Utility 2 | . . . 2 Weapon . | . . . . Parts Attached 5 | 2 1 . 2 Power . | . . . . Engine . | . . . . Core . | . . . . Reactor . | . . . . Propulsion . | . . . . Treads . | . . . . Leg . | . . . . Wheel . | . . . . Hover . | . . . . Flight . | . . . . Utility 2 | . 1 . 1 Device 1 | . . . 1 Storage . | . . . . Processor 1 | . 1 . . Hackware . | . . . . Protection . | . . . . Artifact . | . . . . Weapon 3 | 2 . . 1 Energy Gun 3 | 2 . . 1 Energy Cannon . | . . . . Ballistic Gun . | . . . . Ballistic Cannon . | . . . . Launcher . | . . . . Special Weapon . | . . . . Impact Weapon . | . . . . Slashing Weapon . | . . . . Piercing Weapon . | . . . . Special Melee Weapon . | . . . . Unidentified Prototypes . | . . . . Parts Lost 4 | . . . 4 Power . | . . . . Propulsion . | . . . . Utility 1 | . . . 1 Weapon 3 | . . . 3 Highest Loss Streak 4 | . . . 4 Average Slot Usage (%) 33 | . 38 42 24 Processor 11 | . 10 14 11 Energy Gun 21 | . 28 28 12 Naked Turns . | . . . . Heaviest Build 3 | 3 3 3 3 Greatest Support 3 | 3 3 3 3 Greatest Overweight (x) . | . . . . Average Overweight (x) . | . . . . Largest Inventory Capacity 4 | 4 4 4 4 Average Capacity 4 | 4 4 4 4 Most Carried 4 | 1 1 1 4 Average Carried 1 | . 1 1 2 Final Capacity 4 | 4 4 4 4 Final Carried 4 | 1 1 1 4 Class Distribution -------------------- 100% | Mutant Dominant Class ---------------- Mutant | -10/Materials Mutant | -10/Mines Mutant | -9/Materials Resources | -11 -10 -10 -9 ----------- Run | Scr Mat Min Mat Matter Collected 64 | 64 . . . Remotely . | . . . . Salvage Created . | . . . . Parts . | . . . . Haulers Intercepted . | . . . . Recyclers Shooed . | . . . . Parts Field Recycled . | . . . . Retrieved Matter . | . . . . Parts Self-Destructed . | . . . . Prevented . | . . . . Kills | -11 -10 -10 -9 ------- Run | Scr Mat Min Mat Combat Hostiles Destroyed . | . . . . Classes Destroyed . | . . . . Best Kill Streak . | . . . . Combat Bots Only . | . . . . Max Kills in Single Turn . | . . . . Gunslinging . | . . . . Exploded . | . . . . Melee . | . . . . Uniques/NPCs Destroyed . | . . . . Combat | -11 -10 -10 -9 -------- Run | Scr Mat Min Mat Damage Taken 583 | . . 16 567 Core 401 | . . . 401 Absorbed by Shields . | . . . . Core Remaining (%) 100 | 100 . 100 . Volleys Fired . | . . . . Largest . | . . . . Hottest . | . . . . Shots Fired . | . . . . Gun . | . . . . Cannon . | . . . . Launcher . | . . . . Special . | . . . . Kinetic . | . . . . Thermal . | . . . . Explosive . | . . . . Electromagnetic . | . . . . Robot Hit Streak . | . . . . Robot Miss Streak . | . . . . Penetration Max . | . . . . Secondary Targets . | . . . . Shots Hit Robots . | . . . . Core Hits 2 | . . . 2 Critical Hits . | . . . . Critical Kills . | . . . . Critical Parts Destroyed . | . . . . Melee Attacks . | . . . . Impact . | . . . . Slashing . | . . . . Piercing . | . . . . Sneak Attacks . | . . . . Combat Hostiles . | . . . . Follow-up Attacks . | . . . . Damage Inflicted 9 | . . . 9 Guns . | . . . . Cannons . | . . . . Explosions . | . . . . Melee . | . . . . Ramming 9 | . . . 9 Kinetic . | . . . . Thermal . | . . . . Explosive . | . . . . Electromagnetic . | . . . . Impact . | . . . . Slashing . | . . . . Piercing . | . . . . Highest Corruption . | . . . . Average Corruption . | . . . . Corruption Purged . | . . . . Overload Shots . | . . . . Overflow Damage . | . . . . Projectiles . | . . . . Explosions . | . . . . Melee . | . . . . Knockbacks 2 | . . . 2 Impact 2 | . . . 2 Kinetic . | . . . . Secondary . | . . . . Self-Inflicted Damage 4 | . . . 4 Shots . | . . . . Rammed 2 | . . . 2 Targets Rammed 2 | . . . 2 Kicked . | . . . . Crushed . | . . . . Highest Temperature . | . . . . Average Temperature . | . . . . Received Heat Transfer 303 | . . 9 294 Siege Activations . | . . . . Robots Corrupted . | . . . . Combat Hostiles . | . . . . Parts Fried . | . . . . Impact Corruptions . | . . . . Robots Melted . | . . . . Combat Hostiles . | . . . . Parts Melted . | . . . . Heat Transferred . | . . . . Parts Sabotaged . | . . . . Parts Stolen . | . . . . Parts Stripped . | . . . . Power Chain Reactions . | . . . . Missiles Intercepted . | . . . . Alert | -11 -10 -10 -9 ------- Run | Scr Mat Min Mat Peak Influence 43 | . 15 20 43 Average Influence 12 | . 2 19 18 Maximum Alert Level . | . . . . Low Security (%) 100 | 100 100 100 100 Level 1 . | . . . . Level 2 . | . . . . Level 3 . | . . . . Level 4 . | . . . . Level 5 . | . . . . High Security . | . . . . Max Security . | . . . . Squads Dispatched 5 | . . . 5 Investigation 1 | . . . 1 Extermination . | . . . . Reinforcement 4 | . . . 4 Assault . | . . . . Garrison . | . . . . Intercept . | . . . . Construction Impeded . | . . . . Haulers Reinforced . | . . . . Stealth | -11 -10 -10 -9 --------- Run | Scr Mat Min Mat Distress Signals 2 | . . . 2 Communications Jammed . | . . . . Distress Signals . | . . . . Times Spotted 23 | . 2 2 19 Peak Tracking Total 15 | . 4 2 15 Tactical Retreats 2 | . . 1 1 Traps | -11 -10 -10 -9 ------- Run | Scr Mat Min Mat Traps Triggered . | . . . . Indirectly . | . . . . Trap Hack Attempts . | . . . . Triggered . | . . . . Disarmed . | . . . . Reprogrammed . | . . . . Reused . | . . . . Traps Extracted . | . . . . Installed . | . . . . Triggered . | . . . . Machines | -11 -10 -10 -9 ---------- Run | Scr Mat Min Mat Machines Disabled . | . . . . Max in Single Turn . | . . . . Machines Sabotaged . | . . . . Garrisons Compromised . | . . . . Overloaded Fab Kills . | . . . . Fab Network Shutdowns . | . . . . Hacking | -11 -10 -10 -9 --------- Run | Scr Mat Min Mat Machines Accessed 4 | . 1 . 3 Terminals 4 | . 1 . 3 Fabricators . | . . . . Repair Stations . | . . . . Recycling Units . | . . . . Scanalyzers . | . . . . Garrison Access . | . . . . Total Hacks 8 | . 2 . 6 Successful 1 | . . . 1 Failed 7 | . 2 . 5 Catastrophic 3 | . 2 . 1 Database Lockouts . | . . . . Manual 8 | . 2 . 6 Terminals 8 | . 2 . 6 Fabricators . | . . . . Repair Stations . | . . . . Recycling Units . | . . . . Scanalyzers . | . . . . Garrison Access . | . . . . Terminal Hacks 1 | . . . 1 Zone Layout 1 | . . . 1 Fabricator Hacks . | . . . . Repair Station Hacks . | . . . . Recycling Unit Hacks . | . . . . Scanalyzer . | . . . . Garrison Access Hacks . | . . . . Unauthorized Hacks . | . . . . Terminals . | . . . . Fabricators . | . . . . Repair Stations . | . . . . Recycling Units . | . . . . Scanalyzers . | . . . . Garrison Access . | . . . . Data Cores Recovered . | . . . . Used . | . . . . Hacking Detections 4 | . 1 . 3 Full Trace Events 1 | . . . 1 Feedback Events . | . . . . Feedback Blocked . | . . . . Robot Schematics Acquired . | . . . . Robots Built . | . . . . Matter . | . . . . Time . | . . . . Total Robot Build Rating . | . . . . Part Schematics Acquired . | . . . . Parts Built . | . . . . Matter . | . . . . Time . | . . . . Total Part Build Rating . | . . . . Parts Repaired . | . . . . Time . | . . . . Parts Recycled . | . . . . Recycled Matter . | . . . . Retrieved Matter . | . . . . Retrieved Components . | . . . . Parts Scanalyzed . | . . . . Part Schematics Acquired . | . . . . Parts Damaged . | . . . . Bothacking | -11 -10 -10 -9 ------------ Run | Scr Mat Min Mat Used RIF Installer . | . . . . Robots Hacked . | . . . . Non-combat . | . . . . Combat . | . . . . Robot Hacks Applied . | . . . . Relay Couplers Released . | . . . . Robots Rewired . | . . . . Allies Hacked . | . . . . Hacks Repelled . | . . . . Allies | -11 -10 -10 -9 -------- Run | Scr Mat Min Mat Total Allies . | . . . . Largest Group . | . . . . Highest-Rated Group . | . . . . Highest-Rated Ally . | . . . . Total Orders . | . . . . Ally Attacks . | . . . . Total Damage . | . . . . Kills . | . . . . Allies Corrupted . | . . . . Allies Melted . | . . . . Intel | -11 -10 -10 -9 ------- Run | Scr Mat Min Mat Robot Analysis Total . | . . . . Derelict Logs Recovered . | . . . . Drone Launches . | . . . . Drone Recoveries . | . . . . Exploration | -11 -10 -10 -9 ------------- Run | Scr Mat Min Mat Turns Passed 247 | 22 73 54 98 Spaces Moved 460 | 36 142 108 174 Core 460 | 36 142 108 174 Treads . | . . . . Legs . | . . . . Wheels . | . . . . Hover . | . . . . Flight . | . . . . Fastest Speed 50 | 50 50 50 50 Average Speed 50 | 50 50 50 50 Slowest Speed 50 | 50 50 50 50 Overloaded Moves . | . . . . Propulsion Burnouts . | . . . . Robots Hopped . | . . . . Cave-ins Triggered . | . . . . Exploration Rate (%) 20 | 4 29 31 18 Regions Visited 3 Branch Regions 1 Pre-discovered Areas . | . . . . Known Exits Taken . | . . . . Unknown Exits Taken 3 | 1 1 1 . Scrap Searched . | . . . . Spaces Dug . | . . . . Terrain Destroyed . | . . . . Melee . | . . . . Projectile . | . . . . AOE . | . . . . Actions | -11 -10 -10 -9 --------- Run | Scr Mat Min Mat Total 471 | 38 142 107 184 Wait 2 | . . . 2 Move 457 | 35 141 107 174 Hop . | . . . . Pick Up 5 | 1 . . 4 Fast Attach 4 | 2 1 . 1 Attach 1 | . . . 1 Detach . | . . . . Swap . | . . . . Drop . | . . . . Fire . | . . . . Melee . | . . . . Ram 2 | . . . 2 Kick . | . . . . Crush . | . . . . Escape Stasis . | . . . . Rewire . | . . . . Trap . | . . . . Miscellaneous . | . . . . Route ------- -11/Scrapyard -10/Materials (discovered 2 exits: [*Min x2]) -10/Mines -9/Materials History --------- Turn | Location | Event 8 | -11/Scrapyard | Discovered new exit (range 15) 23 | -11/Scrapyard | Entered Materials 85 | -10/Materials | Discovered new exit (range 15) 88 | -10/Materials | Discovered new exit (range 16) 96 | -10/Materials | Entered Mines 142 | -10/Mines | Discovered new exit (range 15) 150 | -10/Mines | Entered Materials 150 | -9/Materials | Evolved 2 slots: Utility x2 235 | -9/Materials | Core integrity fell below 50% 245 | -9/Materials | Core integrity fell below 20% 248 | -9/Materials | Destroyed by G-34 Mercenary with Small Laser Last Messages --------------- 00182_ K-01 Serf collects debris. 00190_ O-16 Technician: "IFF HANDSHAKE FAILED. SECURING TERMINAL." 00191_ ALERT: Hostiles spotted, dispatching reinforcements to Terminal M004. 00193_ Sml. Laser destroyed. 00195_ Acquired Adv. Sensor Array. 00199_ Acquired Hacking Suite. 00200_ Med. Laser destroyed. 00202_ Acquired Hacking Suite. 00207_ Adv. Sensor Array destroyed. 00209_ Acquired Hacking Suite. 00218_ Med. Laser destroyed. 00222_ Terminal disabled. 00235_ K-01 Serf collects debris. 00246_ Slammed into G-34 Mercenary. 00246_ G-34 Mercenary knocked back. 00247_ Slammed into G-34 Mercenary. 00247_ G-34 Mercenary knocked back. 00247_ Destabilizing: Short circuit. 00247_ Broken Seismic Analyzer permanently disabled. Map ----- +----------------------------------------------------+ | ?????????????????????????????????????????????????? | | ?????????????????????????????????????????????????? | | ?????????????????????????????????????????????????? | | ?????????????????????????????????????????????????? | | ?????????????????????????????????????????????????? | | ?????????????????????????????????????????????????? | | ?????????????????????????????????????????????????? | | ?????????????????????????????????????????????????? | | ?????????????????????????????????????????????????? | | ?????????????????????????????????????????????????? | | ?????????????????????????????????????????????????? | | ?????????????????????????????????????????????????? | | ?????????????????????????????????????????????????? | | ?????????????????????????????????????????????????? | | ?????????????????????????????????######??????????? | | ???????????????????????????????? #??????????? | | ????????????????????+??????????""" #??????????? | | ????????????????????# ??"""??? """ #??????????? | | ????????????????????# """""?? """ ########???? | | ????????????????????? """"??# # T #???? | | ?????????????????????? """"??# """ # #???? | | ??????????????????????? """??# """ # """#???? | | ???????????????????????? ????""" # """#???? | | ????????####????????????#/##+#??? # """#???? | | ??????? ????????#g #??###+### #???? | | ??????? #####@g #??# ###+####???? | | ??????? g #??# #???? | | ??????????????####/#######g #??# T #???? | | ???????????????# ]# #??# #???? | | ???????????????# #g #??# ########???? | | ???????????????# # g #??## #########???? | | ???????????????+ """"""" # g #???# # ???? | | ???????????????# """"""" # ##### # """ ???? | | ???????????????# """"""" + # """ ???? | | ???????????????# """"""" # # """ #??? | | ???????????????# """"""" # ###### + #??? | | ???????????????########### # # #"S #??? | | ?????????????????######### # # #""" #??? | | ?????????????????# # # # # "" #??? | | ?????????????????# # # # # #??? | | ?????????????????# / # + #########???? | | ?????????????????# "T" # # " # #???????????? | | ?????????????????# """ # # T # #???????????? | | ???????????????#?######### # " # #???????????? | | ???????????????########### / # #???????????? | | ???????????????# = #T ###### #???????????? | | ???????????????# ## #????# #???????????? | | ???????????????# ## ##???# #???????????? | | ???????????????# """ # #???# #???????????? | | ???????????????# """"" + #???# #???????????? | +----------------------------------------------------+ Best States ------------- Heat Dissipation 28 Energy Generation 5 Energy Capacity 100 Matter Stores 144 Matter Capacity 300 Sight Range 16 Robot Scan Range 16 Terrain Scan Density 60 Evasion (%) 50 Item Schematics ----------------- None Robot Schematics ------------------ None Fabricated ------------ Nothing Alien Tech Used ----------------- None Achievements -------------- None Challenges ------------ None Game ------ Seed GlidesysKineticImmobilizer Manual? 0 Play Time 00:04:16 Cumulative 917.5 hours Start 2020.02.26 @ 23:30:49 End 2020.02.26 @ 23:33:36 Sessions 1 Manual Loads 0 Difficulty Rogue Special Mode None Game No. 355 Rogue 355 Adventurer 0 Explorer 0 Win Type - Total 22 Types 12/1/7/0/0/0/2 Lore% 96 Gallery% 96 Achievement% 82 Wizard Run 0 Options --------- ASCII 0 Keyboard 0 Movement Vi Keybinds 0 Fullscreen 0 Font 12/Crisp Map View 76x50 Tactical HUD 1 Map Filters NONE Filters NONE Steam 1 RUN: 896fb850-8784-47ad-a464-4a3ba076a8d7